fUSD/lending_fUSD_20251204
["ID","MTS","AMOUNT","RATE_DAILY","PERIOD"]
[396243934,1764868363609,156.059323,8.995e-05,2]
[396243935,1764868364012,156.059323,8.995e-05,2]
[396243936,1764868364253,156.059323,8.995e-05,2]
[396243937,1764868364456,156.059323,8.995e-05,2]
[396243938,1764868364651,156.059323,8.995e-05,2]
[396243939,1764868365022,156.059323,8.995e-05,2]
[396243940,1764868365585,156.059323,8.995e-05,2]
[396243941,1764868365957,156.059323,8.995e-05,2]
[396243942,1764868366147,156.059323,8.995e-05,2]
[396243943,1764868366317,156.059323,8.995e-05,2]
[396243944,1764868367084,156.059323,8.995e-05,2]
[396243945,1764868367881,156.059323,8.995e-05,2]
[396243946,1764868368086,156.059323,8.995e-05,2]
[396243947,1764868368223,158.845803,8.995e-05,2]
[396243948,1764868368301,156.059323,8.995e-05,2]
[396243949,1764868368430,158.845803,8.995e-05,2]
[396243950,1764868368467,156.059323,8.995e-05,2]
[396243951,1764868368566,158.845803,8.995e-05,2]
[396243952,1764868368665,156.059323,8.995e-05,2]
[396243953,1764868368886,156.059323,8.995e-05,2]
[396243954,1764868368944,158.845803,8.995e-05,2]
[396243955,1764868369111,156.059323,8.995e-05,2]
[396243956,1764868369168,53.80333239,8.995e-05,2]
[396243957,1764868369193,105.04247061,8.995e-05,2]
[396243958,1764868369317,156.059323,8.995e-05,2]
[396243959,1764868369708,158.845803,8.995e-05,2]
[396243960,1764868369808,156.059323,8.995e-05,2]
[396243961,1764868369894,156.059323,8.995e-05,2]
[396243962,1764868369996,158.845803,8.995e-05,2]
[396243963,1764868370143,156.059323,8.995e-05,2]
[396243964,1764868372937,153.127836,8.995e-05,2]
[396243965,1764868373236,153.127836,8.995e-05,2]
[396243966,1764868373475,153.127836,8.995e-05,2]
[396243967,1764868374055,153.127836,8.995e-05,2]
[396243968,1764868374360,153.127836,8.995e-05,2]
[396243969,1764868374629,153.127836,8.995e-05,2]
[396243970,1764868374754,153.127836,8.995e-05,2]
[396243971,1764868375058,153.127836,8.995e-05,2]
[396243972,1764868375380,153.127836,8.995e-05,2]
[396243973,1764868375696,153.127836,8.995e-05,2]
[396243974,1764868376036,153.127836,8.995e-05,2]
[396243975,1764868376550,153.127836,8.995e-05,2]
[396243976,1764868376809,153.127836,8.995e-05,2]
[396243977,1764868377474,153.127836,8.995e-05,2]
[396243978,1764868377667,153.127836,8.995e-05,2]
[396243979,1764868377855,153.127836,8.995e-05,2]
[396243980,1764868378109,153.127836,8.995e-05,2]
[396243981,1764868378186,153.127836,8.995e-05,2]
[396243982,1764868378530,153.127836,8.995e-05,2]
[396243983,1764868378691,153.127836,8.995e-05,2]
[396243984,1764868378885,153.127836,8.995e-05,2]
[396243985,1764868379256,153.127836,8.995e-05,2]
[396243986,1764868379504,153.127836,8.995e-05,2]
[396243987,1764868379815,153.127836,8.995e-05,2]
[396243988,1764868380099,153.127836,8.995e-05,2]
[396243989,1764868380374,153.127836,8.995e-05,2]
[396243990,1764868380661,153.127836,8.995e-05,2]
[396243991,1764868381135,153.127836,8.995e-05,2]
[396243992,1764868381460,153.127836,8.995e-05,2]
[396243993,1764868381654,153.127836,8.995e-05,2]
[396243994,1764868381917,153.127836,8.995e-05,2]
[396243995,1764868382170,153.127836,8.995e-05,2]
[396243996,1764868382480,153.127836,8.995e-05,2]
[396243997,1764868382789,153.127836,8.995e-05,2]
[396243998,1764868383464,153.127836,8.995e-05,2]
[396243999,1764868383613,153.127836,8.995e-05,2]
[396244002,1764868863347,151.0,0.00022,30]
[396244009,1764869119934,3182.15116354,9e-05,2]
[396244010,1764869126028,1022.61272451,0.000108,2]
[396244011,1764869137903,-369.9,0.00013699,2]
[396244012,1764869137926,-209.81349261,0.00013699,2]
[396244013,1764869137949,-152.0,0.0001538,2]
[396244014,1764869137972,-658.478434,0.00015965,2]
[396244015,1764869137996,-152.51,0.00016046,2]
[396244016,1764869138021,-794.661,0.00016366,2]
[396244017,1764869138045,-300.0,0.00016599,2]
[396244018,1764869138069,-1000.0,0.000166,2]
[396244019,1764869138093,-842.34406966,0.000166,2]
[396244020,1764869138117,-193.69173263,0.000166,2]
[396244021,1764869138140,-2500.0,0.000166,2]
[396244022,1764869138163,-235.4048,0.000166,2]
[396244023,1764869138186,-969.86053552,0.00016698,2]
[396244024,1764869138210,-5621.33593558,0.000167,2]
[396244025,1764869162203,13452.41204836,8e-05,2]
[396244028,1764869276237,671.39824189,8e-05,2]
[396244029,1764869309059,2048.46,0.00025,120]
[396244030,1764869321117,5387.14964268,0.0001,2]
[396244047,1764869432165,-174.32255934,0.00016599,2]
[396244048,1764869432175,-300.0,0.00016599,2]
[396244049,1764869432185,-53.36842633,0.000166,2]
[396244050,1764869432196,-1000.99,0.000166,2]
[396244051,1764869432207,-407.74984699,0.000166,2]
[396244052,1764869432258,-1037.89172668,0.000166,2]
[396244053,1764869432268,-5777.23413332,0.000166,2]
[396244054,1764869432279,-18674.13477029,0.000166,2]
[396244055,1764869432413,-229.999998,0.000166,2]
[396244056,1764869432423,-1126.55618914,0.000166,2]
[396244057,1764869432434,-394.17718249,0.000166,2]
[396244058,1764869432445,-3622.27346408,0.000166,2]
[396244059,1764869432457,-1649.8990019,0.000166,2]
[396244060,1764869432467,-646.62018074,0.000166,2]
[396244061,1764869432497,-308.32,0.000166,2]
[396244062,1764869432508,-461.17361602,0.000166,2]
[396244099,1764869438452,-1111.36179119,0.000166,2]
[396244105,1764869438534,-1550.73238527,0.000166,2]
[396244114,1764869438616,-658.47843359,0.000166,2]
[396244128,1764869440270,-1383.00784211,0.000166,2]
[396244129,1764869440282,-3689.52,0.000166,2]
[396244130,1764869440294,-7028.84508125,0.000166,2]
[396244131,1764869441066,-677421.49733061,0.000166,2]
[396244132,1764869441076,-14337.0,0.000166,2]
[396244133,1764869441087,-5143.46590609,0.00016699,2]
[396244134,1764869441098,-16643.98686442,0.000167,2]
[396244135,1764869441108,-201.33333333,0.000167,2]
[396244136,1764869441118,-151.0,0.000167,2]
[396244137,1764869441128,-500.0,0.00016799,2]
[396244138,1764869441138,-500.0,0.00016799,2]
[396244139,1764869441147,-500.0,0.00016799,2]
[396244140,1764869441158,-162.52117377,0.00016899,2]
[396244141,1764869441167,-173.68261736,0.0001699,2]
[396244142,1764869441176,-500.0,0.00016999,2]
[396244143,1764869441186,-500.0,0.00016999,2]
[396244144,1764869441196,-500.0,0.00016999,2]
[396244145,1764869441207,-237.50164851,0.00016999,2]
[396244146,1764869441217,-500.0,0.00016999,2]
[396244147,1764869441228,-500.0,0.00016999,2]
[396244148,1764869441237,-500.0,0.00016999,2]
[396244149,1764869441247,-500.0,0.00016999,2]
[396244150,1764869441257,-500.0,0.00016999,2]
[396244151,1764869441266,-500.0,0.00016999,2]
[396244152,1764869441275,-500.0,0.00016999,2]
[396244153,1764869441285,-500.0,0.00016999,2]
[396244154,1764869441294,-500.0,0.00016999,2]
[396244155,1764869441304,-500.0,0.00016999,2]
[396244156,1764869441313,-500.0,0.00016999,2]
[396244157,1764869441323,-500.0,0.00016999,2]
[396244158,1764869441332,-500.0,0.00016999,2]
[396244159,1764869441341,-500.0,0.00016999,2]
[396244160,1764869441351,-500.0,0.00016999,2]
[396244161,1764869441360,-500.0,0.00016999,2]
[396244162,1764869441370,-500.0,0.00016999,2]
[396244163,1764869441381,-500.0,0.00016999,2]
[396244164,1764869441390,-500.0,0.00016999,2]
[396244165,1764869441400,-500.0,0.00016999,2]
[396244166,1764869441410,-500.0,0.00016999,2]
[396244167,1764869441421,-500.0,0.00016999,2]
[396244168,1764869441431,-500.0,0.00016999,2]
[396244169,1764869441440,-500.0,0.00016999,2]
[396244170,1764869441449,-500.0,0.00016999,2]
[396244171,1764869441458,-500.0,0.00016999,2]
[396244172,1764869441467,-500.0,0.00016999,2]
[396244173,1764869441476,-500.0,0.00016999,2]
[396244174,1764869441486,-500.0,0.00016999,2]
[396244175,1764869441496,-500.0,0.00016999,2]
[396244176,1764869441506,-500.0,0.00016999,2]
[396244177,1764869441515,-500.0,0.00016999,2]
[396244178,1764869441525,-500.0,0.00016999,2]
[396244179,1764869441534,-630.18683968,0.00016999,2]
[396244180,1764869441544,-630.18683968,0.00016999,2]
[396244181,1764869441554,-630.18683968,0.00016999,2]
[396244182,1764869441564,-630.18683968,0.00016999,2]
[396244183,1764869441574,-630.18683968,0.00016999,2]
[396244184,1764869441583,-630.18683968,0.00016999,2]
[396244185,1764869441592,-630.18683968,0.00016999,2]
[396244186,1764869441606,-630.18683968,0.00016999,2]
[396244187,1764869441615,-630.18683968,0.00016999,2]
[396244188,1764869441625,-630.18683968,0.00016999,2]
[396244189,1764869441634,-630.18683968,0.00016999,2]
[396244190,1764869441644,-630.18683968,0.00016999,2]
[396244191,1764869441654,-630.18683968,0.00016999,2]
[396244192,1764869441665,-630.18683968,0.00016999,2]
[396244193,1764869441674,-630.18683968,0.00016999,2]
[396244194,1764869441688,-630.18683968,0.00016999,2]
[396244195,1764869441698,-630.18683968,0.00016999,2]
[396244196,1764869441707,-630.18683968,0.00016999,2]
[396244197,1764869441716,-630.18683968,0.00016999,2]
[396244198,1764869441726,-630.18683968,0.00016999,2]
[396244199,1764869441736,-630.18683968,0.00016999,2]
[396244200,1764869441747,-630.18683968,0.00016999,2]
[396244201,1764869441758,-630.18683968,0.00016999,2]
[396244202,1764869441768,-630.18683968,0.00016999,2]
[396244203,1764869441779,-630.18683968,0.00016999,2]
[396244204,1764869441789,-630.18683968,0.00016999,2]
[396244205,1764869441800,-630.18683968,0.00016999,2]
[396244206,1764869441811,-630.18683968,0.00016999,2]
[396244207,1764869441820,-630.18683968,0.00016999,2]
[396244208,1764869441830,-630.18683968,0.00016999,2]
[396244209,1764869441840,-630.18683968,0.00016999,2]
[396244210,1764869441849,-630.18683968,0.00016999,2]
[396244211,1764869441860,-630.18683968,0.00016999,2]
[396244212,1764869441869,-630.18683968,0.00016999,2]
[396244213,1764869441879,-630.18683968,0.00016999,2]
[396244214,1764869441889,-630.18683968,0.00016999,2]
[396244215,1764869441898,-630.18683968,0.00016999,2]
[396244216,1764869441909,-630.18683968,0.00016999,2]
[396244217,1764869441920,-630.18683968,0.00016999,2]
[396244218,1764869441931,-630.18683968,0.00016999,2]
[396244219,1764869441943,-630.18683968,0.00016999,2]
[396244220,1764869441952,-630.18683968,0.00016999,2]
[396244221,1764869441962,-630.18683968,0.00016999,2]
[396244222,1764869441971,-630.18683968,0.00016999,2]
[396244223,1764869441981,-630.18683968,0.00016999,2]
[396244224,1764869441990,-623.8849713,0.00016999,2]
[396244225,1764869442001,-623.8849713,0.00016999,2]
[396244226,1764869442010,-623.8849713,0.00016999,2]
[396244227,1764869442020,-623.8849713,0.00016999,2]
[396244228,1764869442029,-623.8849713,0.00016999,2]
[396244229,1764869442038,-623.8849713,0.00016999,2]
[396244230,1764869442048,-623.8849713,0.00016999,2]
[396244231,1764869442057,-623.8849713,0.00016999,2]
[396244232,1764869442066,-623.8849713,0.00016999,2]
[396244233,1764869442077,-623.88497127,0.00016999,2]
[396244234,1764869442086,-661135.72766739,0.00017,2]
[396244235,1764869442099,-91138.42393929,0.00017,2]
[396244236,1764869442247,-298.51436949,0.00017,2]
[396244237,1764869442259,-820.95209632,0.00017,2]
[396244238,1764869442270,-4303.43110028,0.00017,2]
[396244239,1764869442281,-1518.12334425,0.00017,2]
[396244240,1764869442292,-532.00000002,0.00017,2]
[396244241,1764869442362,-265.96,0.00017,2]
[396244246,1764869445121,-151.0,0.00016999,2]
[396244247,1764869445131,-151.0,0.00016999,2]
[396244248,1764869445141,-2694.09898501,0.00017,2]
[396244249,1764869445252,-75679.19814011,0.00017,2]
[396244250,1764869445264,-91416.472,0.00017,2]
[396244257,1764869447570,-2176.58344304,0.00017,2]
[396244258,1764869447765,-36427.40427784,0.00017,2]
[396244259,1764869590115,150.0,0.00024392,120]
[396244542,1764870633263,-152.0,0.0001538,2]
[396244543,1764870633273,-227.600827,0.00016105,2]
[396244544,1764870633283,-1000.0,0.00016383,2]
[396244545,1764870633293,-151.0,0.00016397,2]
[396244546,1764870633302,-150.0,0.00016399,2]
[396244547,1764870633312,-432.0,0.00016399,2]
[396244548,1764870633321,-150.0,0.00016399,2]
[396244549,1764870633524,-300.0,0.00016399,2]
[396244550,1764870633538,-1200.0,0.00016399,2]
[396244551,1764870633547,-421.3507696,0.00016399,4]
[396244552,1764870633556,-9953.54118266,0.000164,2]
[396244553,1764870633613,-13460.52097293,0.000164,2]
[396244554,1764870633624,-940.26308081,0.000164,2]
[396244555,1764870633635,-17906.07609327,0.000164,2]
[396244556,1764870633646,-6431.79281745,0.000164,2]
[396244557,1764870633736,-995.88708944,0.000164,2]
[396244558,1764870633837,-714.85895225,0.000164,2]
[396244559,1764870633849,-11385.14099783,0.000164,2]
[396244597,1764870639010,-31713.18570998,0.000164,2]
[396244599,1764870639026,-592.93632478,0.000164,2]
[396244601,1764870639039,-1242.68510765,0.000164,2]
[396244618,1764870639210,-1807.5,0.000164,2]
[396244620,1764870639223,-707.57417602,0.000164,2]
[396244622,1764870639235,-639.8168967,0.000164,2]
[396244624,1764870639247,-5506.13801322,0.000164,2]
[396244627,1764870639261,-44782.01842035,0.000164,2]
[396244631,1764870639298,-610.69999992,0.000164,2]
[396244686,1764870640417,-242477.53114352,0.000164,2]
[396244687,1764870640429,-699.70301262,0.000164,2]
[396244688,1764870640442,-2200.00009843,0.000164,2]
[396244689,1764870640461,-1839.138,0.000164,2]
[396244690,1764870640472,-1116.62789109,0.000164,2]
[396244691,1764870640524,-24659.59038643,0.000164,2]
[396244692,1764870640535,-337616.77363265,0.000164,2]
[396244693,1764870640545,-162.52117377,0.000164,2]
[396244694,1764870640554,-635.729,0.00016499,2]
[396244695,1764870640564,-33414.4842,0.000165,2]
[396244696,1764870640573,-1000.0,0.000165,2]
[396244697,1764870640584,-4090.1927,0.000165,2]
[396244698,1764870640593,-44289.8878,0.000165,2]
[396244699,1764870640603,-2500.0,0.000165,2]
[396244700,1764870640612,-2751.0,0.00016579,2]
[396244701,1764870640621,-2559.39891404,0.00016584,2]
[396244702,1764870640630,-8963.70032783,0.00016584,2]
[396244704,1764870640640,-191.80987938,0.00016584,2]
[396244706,1764870640649,-200.0,0.0001659,2]
[396244708,1764870640659,-500.0,0.0001659,2]
[396244710,1764870640668,-200.0,0.0001659,2]
[396244712,1764870640678,-500.0,0.00016599,2]
[396244714,1764870640687,-250.0,0.00016684,2]
[396244716,1764870640696,-500.0,0.00016699,2]
[396244717,1764870640712,-500.0,0.00016699,2]
[396244719,1764870640727,-2964.58,0.00016739,2]
[396244721,1764870640737,-150.0,0.00016805,2]
[396244723,1764870640747,-151.0,0.00016865,2]
[396244725,1764870640757,-500.0,0.00016867,2]
[396244727,1764870640769,-500.0,0.00016867,2]
[396244729,1764870640778,-500.0,0.00016867,2]
[396244730,1764870640788,-500.0,0.00016867,2]
[396244731,1764870640797,-500.0,0.00016867,2]
[396244732,1764870640807,-500.0,0.00016867,2]
[396244733,1764870640816,-500.0,0.00016867,2]
[396244734,1764870640825,-500.0,0.00016867,2]
[396244735,1764870640835,-500.0,0.00016867,2]
[396244736,1764870640844,-500.0,0.00016867,2]
[396244737,1764870640854,-500.0,0.00016867,2]
[396244738,1764870640864,-500.0,0.00016867,2]
[396244739,1764870640873,-500.0,0.00016867,2]
[396244740,1764870640883,-500.0,0.00016867,2]
[396244741,1764870640892,-435.90247116,0.00016867,2]
[396244742,1764870640901,-500.0,0.00016867,2]
[396244743,1764870640912,-500.0,0.00016867,2]
[396244744,1764870640921,-500.0,0.00016867,2]
[396244745,1764870640931,-500.0,0.00016867,2]
[396244746,1764870640941,-500.0,0.00016867,2]
[396244747,1764870640950,-500.0,0.00016867,2]
[396244748,1764870640960,-500.0,0.00016867,2]
[396244749,1764870640969,-500.0,0.00016867,2]
[396244750,1764870640983,-500.0,0.00016867,2]
[396244751,1764870640993,-500.0,0.00016867,2]
[396244752,1764870641002,-500.0,0.00016867,2]
[396244753,1764870641012,-500.0,0.00016867,2]
[396244754,1764870641023,-500.0,0.00016867,2]
[396244755,1764870641032,-500.0,0.00016867,2]
[396244756,1764870641042,-500.0,0.00016867,2]
[396244757,1764870641051,-500.0,0.00016867,2]
[396244758,1764870641063,-500.0,0.00016867,2]
[396244759,1764870641072,-500.0,0.00016867,2]
[396244760,1764870641082,-376.21,0.00016868,2]
[396244761,1764870641092,-4566.66,0.00016869,2]
[396244762,1764870641101,-614.59319677,0.000169,2]
[396244763,1764870641110,-257.51412242,0.0001699,2]
[396244764,1764870641120,-151.0,0.00016997,2]
[396244765,1764870641130,-1999.99,0.00016999,2]
[396244766,1764870641140,-245813.74318758,0.00017,2]
[396244773,1764870643848,-500.0,0.00016867,2]
[396244774,1764870643858,-237.50164851,0.00016867,2]
[396244776,1764870643867,-1578.71654561,0.00017,2]
[396244778,1764870643878,-340.86111214,0.00017,2]
[396244782,1764870643952,-748.63230573,0.00017,2]
[396244783,1764870643963,-342.65286105,0.00017,2]
[396244784,1764870643995,-173637.94024405,0.00017,2]
[396244785,1764870644005,-251.66666667,0.00017,2]
[396244786,1764870644014,-40991.4073976,0.00017,2]
[396244787,1764870644026,-151.0,0.00017,2]
[396244788,1764870644035,-186.94,0.00017023,2]
[396244789,1764870644045,-376.21,0.00017142,2]
[396244792,1764870644055,-1834.63401938,0.00017372,2]
[396244793,1764870644065,-376.21,0.00017416,2]
[396244794,1764870644074,-376.21,0.0001769,2]
[396244795,1764870644084,-153.62656338,0.000179,2]
[396244796,1764870644093,-376.24,0.00017964,2]
[396244797,1764870644103,-3383.04,0.00017978,2]
[396244798,1764870644112,-867183.98230639,0.00018,2]
[396244799,1764870644124,-156883.60497794,0.00018,2]
[396244800,1764870644134,-68957.98581717,0.00018,2]
[396244801,1764870644143,-887.27272926,0.00018,2]
[396244802,1764870644154,-1183.49453852,0.00018,2]
[396244803,1764870644163,-151.0,0.00018,2]
[396244804,1764870644174,-201.11287879,0.00018,2]
[396244805,1764870644184,-151.0,0.00018,2]
[396244806,1764870644193,-151.0,0.00018,2]
[396244807,1764870644202,-151.0,0.00018,2]
[396244808,1764870644212,-151.0,0.00018,2]
[396244809,1764870644221,-4513.853999,0.00018,2]
[396244810,1764870644230,-4513.853999,0.00018,2]
[396244811,1764870644239,-4513.853999,0.00018,2]
[396244812,1764870644248,-4513.853999,0.00018,2]
[396244813,1764870644257,-151.0,0.00018,2]
[396244814,1764870644267,-151.0,0.00018,2]
[396244815,1764870644276,-155.258517,0.00018,2]
[396244816,1764870644286,-151.0,0.00018,2]
[396244817,1764870644295,-151.0,0.00018,2]
[396244818,1764870644306,-151.0,0.00018,2]
[396244819,1764870644316,-1249.163479,0.00018,2]
[396244820,1764870644325,-1249.163479,0.00018,2]
[396244821,1764870644334,-1249.163479,0.00018,2]
[396244822,1764870644344,-1249.163479,0.00018,2]
[396244823,1764870644353,-165.752162,0.00018,2]
[396244824,1764870644363,-165.752162,0.00018,2]
[396244825,1764870644372,-165.752162,0.00018,2]
[396244826,1764870644382,-165.752162,0.00018,2]
[396244827,1764870644395,-151.0,0.00018,2]
[396244828,1764870644405,-151.0,0.00018,2]
[396244829,1764870644415,-151.0,0.00018,2]
[396244830,1764870644425,-2559.39891399,0.00018286,2]
[396244831,1764870644435,-8963.70032774,0.00018286,2]
[396244832,1764870644445,-1000.0,0.0001843,2]
[396244833,1764870644455,-150.83,0.000188,2]
[396244834,1764870644464,-150.83,0.000188,2]
[396244835,1764870644474,-480.06109419,0.00018893,2]
[396244836,1764870644485,-42971.1854688,0.00019,2]
[396244837,1764870644494,-596.58188449,0.00019,2]
[396244838,1764870644504,-9146.4192973,0.00019153,2]
[396244839,1764870644514,-153.413684,0.00019178,2]
[396244840,1764870644523,-174.393232,0.00019178,2]
[396244841,1764870644533,-152.940986,0.00019178,2]
[396244842,1764870644542,-151.0,0.00019178,2]
[396244843,1764870644552,-151.000016,0.00019178,2]
[396244844,1764870644562,-151.000005,0.00019178,2]
[396244845,1764870644571,-151.0,0.00019178,2]
[396244846,1764870644581,-183.023382,0.00019178,2]
[396244847,1764870644591,-151.0,0.00019178,2]
[396244848,1764870644601,-166.909594,0.00019178,2]
[396244849,1764870644610,-151.0,0.00019178,2]
[396244850,1764870644619,-151.0,0.00019178,2]
[396244851,1764870644629,-152.371997,0.00019178,2]
[396244852,1764870644639,-195.077165,0.00019178,2]
[396244853,1764870644648,-151.0,0.00019178,2]
[396244854,1764870644658,-151.0,0.00019178,2]
[396244855,1764870644668,-151.0,0.00019178,2]
[396244856,1764870644677,-151.0,0.00019178,2]
[396244857,1764870644687,-151.0,0.00019178,2]
[396244858,1764870644696,-151.0,0.00019178,2]
[396244859,1764870644705,-151.0,0.00019178,2]
[396244860,1764870644715,-151.0,0.00019178,2]
[396244861,1764870644724,-151.0,0.00019178,2]
[396244862,1764870644734,-151.0,0.00019178,2]
[396244863,1764870644744,-798.906154,0.00019178,2]
[396244864,1764870644754,-798.906154,0.00019178,2]
[396244865,1764870644764,-151.0,0.00019178,2]
[396244866,1764870644774,-798.906154,0.00019178,2]
[396244867,1764870644784,-151.0,0.00019178,2]
[396244868,1764870644794,-798.906154,0.00019178,2]
[396244869,1764870644805,-294.492084,0.00019178,2]
[396244870,1764870644814,-151.0,0.00019178,2]
[396244871,1764870644826,-151.0,0.00019178,2]
[396244872,1764870644836,-151.0,0.00019178,2]
[396244873,1764870644847,-151.0,0.00019178,2]
[396244874,1764870644858,-151.0,0.00019178,2]
[396244875,1764870644868,-151.0,0.00019178,2]
[396244876,1764870644878,-151.0,0.00019178,2]
[396244877,1764870644888,-151.519449,0.00019178,2]
[396244878,1764870644899,-3848.935369,0.00019178,2]
[396244879,1764870644910,-3848.935369,0.00019178,2]
[396244880,1764870644921,-3848.935369,0.00019178,2]
[396244881,1764870644932,-3848.935369,0.00019178,2]
[396244882,1764870644943,-151.0,0.00019178,2]
[396244883,1764870644953,-151.0,0.00019178,2]
[396244884,1764870644963,-151.0,0.00019178,2]
[396244885,1764870644974,-151.0,0.00019178,2]
[396244886,1764870644989,-153.431357,0.00019178,2]
[396244887,1764870644999,-171.057802,0.00019178,2]
[396244888,1764870645009,-171.057802,0.00019178,2]
[396244889,1764870645022,-151.0,0.00019178,2]
[396244890,1764870645032,-171.057802,0.00019178,2]
[396244891,1764870645041,-171.057802,0.00019178,2]
[396244892,1764870645051,-162.52117377,0.00019213,2]
[396244893,1764870645060,-2040.8420026,0.00019634,2]
[396244894,1764870645070,-191.80987935,0.00019641,2]
[396244895,1764870645079,-2559.39891399,0.00019988,2]
[396244896,1764870645088,-8963.70032774,0.00019988,2]
[396244897,1764870645098,-152.51,0.00020057,2]
[396244898,1764870645107,-369.9,0.00020187,2]
[396244899,1764870645117,-2000.0,0.000203,2]
[396244900,1764870645129,-1000.0,0.00020478,2]
[396244901,1764870645138,-151.0,0.00020548,2]
[396244902,1764870645147,-151.0,0.00020548,2]
[396244903,1764870645157,-200.0,0.00020745,2]
[396244904,1764870645167,-200.0,0.0002092,2]
[396244905,1764870645178,-610.0,0.00021004,2]
[396244906,1764870645188,-1259.0,0.00021004,2]
[396244907,1764870645198,-253.0,0.00021004,2]
[396244908,1764870645208,-4213.494,0.00021004,2]
[396244909,1764870645217,-6865.6,0.00021031,2]
[396244910,1764870645227,-614.59319676,0.00021032,2]
[396244911,1764870645237,-2559.39891399,0.00021689,2]
[396244912,1764870645246,-8963.70032774,0.00021689,2]
[396244913,1764870645257,-151.0,0.00021918,2]
[396244914,1764870645269,-162.484126,0.00021918,2]
[396244915,1764870645279,-162.484126,0.00021918,2]
[396244916,1764870645289,-162.484126,0.00021918,2]
[396244917,1764870645298,-162.484126,0.00021918,2]
[396244918,1764870645308,-5978.0,0.00022,7]
[396244919,1764870645318,-6509.3,0.00022,7]
[396244920,1764870645327,-162.52117377,0.00022025,4]
[396244921,1764870645337,-5000.0,0.00022227,2]
[396244922,1764870645347,-150.0,0.000224,14]
[396244923,1764870645356,-1000.0,0.00022526,2]
[396244924,1764870645366,-191.80987935,0.00022698,2]
[396244925,1764870645375,-2559.39891399,0.00023391,2]
[396244926,1764870645385,-8963.70032774,0.00023391,2]
[396244927,1764870645396,-1844.31955343,0.00023592,2]
[396244928,1764870645405,-166.66,0.00023726,2]
[396244929,1764870645414,-2000.0,0.00024,2]
[396244930,1764870645424,-610.0,0.00024004,2]
[396244931,1764870645434,-1259.0,0.00024004,2]
[396244932,1764870645444,-253.0,0.00024004,2]
[396244933,1764870645454,-152.51,0.00024068,2]
[396244934,1764870645463,-150.0,0.00024392,2]
[396244935,1764870645473,-5542.88,0.00024392,2]
[396244936,1764870645483,-200.0,0.00024392,2]
[396244937,1764870645494,-200.0,0.00024392,2]
[396244938,1764870645504,-166.66,0.00024509,2]
[396244939,1764870645514,-734.20706268,0.00024534,2]
[396244940,1764870645525,-1000.0,0.00024574,2]
[396244941,1764870645535,-151.0,0.00024658,2]
[396244942,1764870645545,-356.82,0.00024658,2]
[396244943,1764870645555,-339.920093,0.00024658,2]
[396244944,1764870645564,-339.920093,0.00024658,2]
[396244945,1764870645574,-339.920093,0.00024658,2]
[396244946,1764870645583,-339.920093,0.00024658,2]
[396244947,1764870645593,-500.0,0.00024799,2]
[396244948,1764870645603,-192.81172434,0.00024799,2]
[396244949,1764870645613,-204.24031189,0.00024799,2]
[396244950,1764870645623,-500.0,0.00024799,2]
[396244951,1764870645633,-500.0,0.00024799,2]
[396244952,1764870645642,-500.0,0.00024799,2]
[396244953,1764870645652,-500.0,0.00024799,2]
[396244954,1764870645661,-500.0,0.00024799,2]
[396244955,1764870645673,-487.57549345,0.00024799,2]
[396244956,1764870645683,-500.0,0.00024799,2]